fUSD/lending_fUSD_20240529
["ID","MTS","AMOUNT","RATE_DAILY","PERIOD"]
[328164545,1716979027955,-150.0,5.205e-05,2]
[328164546,1716979028439,-150.0,5.205e-05,2]
[328164547,1716979029149,-150.0,5.205e-05,2]
[328164548,1716979033814,-150.0,5.205e-05,2]
[328164549,1716979107184,-56.57769128,5.205e-05,2]
[328164550,1716979107208,-93.42230872,5.205e-05,2]
[328164551,1716979109793,-150.0,5.205e-05,2]
[328164554,1716979183150,-219.0,5.204e-05,2]
[328164555,1716979183172,-150.0,5.204e-05,2]
[328164556,1716979183196,-2631.0,5.205e-05,2]
[328164557,1716979194337,-1000.0,5.205e-05,2]
[328164561,1716979594843,-150.0,5.205e-05,2]
[328164562,1716979595022,-150.0,5.205e-05,2]
[328164563,1716979595083,-150.0,5.205e-05,2]
[328164564,1716979595226,-150.0,5.205e-05,2]
[328164565,1716979595282,-150.0,5.205e-05,2]
[328164566,1716979595345,-150.0,5.205e-05,2]
[328164567,1716979595442,-150.0,5.205e-05,2]
[328164568,1716979595494,-150.0,5.205e-05,2]
[328164569,1716979595534,-150.0,5.205e-05,2]
[328164570,1716979595609,-150.0,5.205e-05,2]
[328164571,1716979595650,-150.0,5.205e-05,2]
[328164572,1716979595714,-150.0,5.205e-05,2]
[328164573,1716979595763,-150.0,5.205e-05,2]
[328164574,1716979595816,-150.0,5.205e-05,2]
[328164575,1716979595851,-150.0,5.205e-05,2]
[328164576,1716979595894,-150.0,5.205e-05,2]
[328164577,1716979595937,-150.0,5.205e-05,2]
[328164578,1716979595974,-150.0,5.205e-05,2]
[328164579,1716979596024,-150.0,5.205e-05,2]
[328164580,1716979596086,-150.0,5.205e-05,2]
[328164581,1716979596143,-192.21083166,5.205e-05,2]
[328164582,1716979596203,-150.0,5.205e-05,2]
[328164583,1716979596264,-150.0,5.205e-05,2]
[328164584,1716979609202,786.29,3.904e-05,2]
[328164585,1716979614078,451.49262671,5.204e-05,2]
[328164586,1716979636969,362.48332984,5.204e-05,2]
[328164590,1716979654964,362.70463786,5.204e-05,2]
[328164591,1716979674096,230315.02940559,5.204e-05,2]
[328164637,1716979832238,-1065.47621405,5.201e-05,2]
[328164639,1716979832247,-250.32722147,5.202e-05,2]
[328164641,1716979832258,-2750.46183892,5.204e-05,2]
[328164663,1716979838544,-8372.94289995,5.204e-05,2]
[328164664,1716979838555,-92578.94697877,5.204e-05,2]
[328164665,1716979838576,-214120.40951149,5.204e-05,2]
[328164666,1716979838586,-24639.85337049,5.204e-05,2]
[328164667,1716979838598,-18374.15042464,5.205e-05,2]
[328164668,1716979838608,-243.54037139,5.205e-05,2]
[328164669,1716979838618,-300.0,5.205e-05,2]
[328164670,1716979838627,-175.39384736,5.205e-05,2]
[328164671,1716979838637,-243.42230872,6.593e-05,2]
[328164672,1716979838647,-2319.164971,8.178e-05,2]
[328164673,1716979838656,-710.13,8.219e-05,2]
[328164674,1716979838666,-167.97,8.219e-05,2]
[328164675,1716979838675,-155.24195711,8.641e-05,2]
[328164676,1716979838686,-35415.86186553,8.642e-05,2]
[328164677,1716979838695,-322.18540633,8.69e-05,2]
[328164678,1716979838705,-3293.75899762,8.69e-05,2]
[328164679,1716979838714,-3330.93391713,8.969e-05,2]
[328164680,1716979838724,-525.15885076,9e-05,2]
[328164681,1716979838733,-250.0,9.229e-05,2]
[328164682,1716979838742,-232.34,9.261e-05,2]
[328164683,1716979838756,-254.18206746,9.442e-05,2]
[328164684,1716979838766,-4068.44,9.489e-05,2]
[328164685,1716979838775,-181.13,9.489e-05,2]
[328164686,1716979838784,-500.0,9.529e-05,2]
[328164687,1716979838794,-499.99,9.67e-05,2]
[328164688,1716979838809,-171.16,9.674e-05,2]
[328164689,1716979838818,-1000.0,9.779e-05,2]
[328164690,1716979838830,-200.0,9.779e-05,2]
[328164691,1716979838839,-801.87,9.779e-05,2]
[328164692,1716979838849,-908.93,9.779e-05,2]
[328164693,1716979838858,-150.99,9.779e-05,2]
[328164694,1716979838868,-158.8,9.843e-05,2]
[328164695,1716979838878,-2010.07726375,9.869e-05,2]
[328164696,1716979838889,-784.22148978,9.869e-05,2]
[328164697,1716979838898,-519.11785735,9.869e-05,2]
[328164698,1716979838907,-2823.92184465,9.87e-05,2]
[328164699,1716979838918,-3080.86,9.871e-05,2]
[328164700,1716979838927,-943.46,9.888e-05,2]
[328164701,1716979838940,-23900.0,9.904e-05,2]
[328164702,1716979838949,-250.0,9.904e-05,2]
[328164703,1716979838958,-158.8,9.907e-05,2]
[328164704,1716979838967,-200.0,9.917e-05,2]
[328164705,1716979838977,-181.13,9.92e-05,2]
[328164706,1716979838987,-158.8,9.971e-05,2]
[328164707,1716979838996,-3000.0,0.0001,2]
[328164708,1716979839006,-158.8,0.00010035,2]
[328164709,1716979839016,-171.47,0.00010068,2]
[328164710,1716979839025,-158.8,0.00010099,2]
[328164711,1716979839035,-158.8,0.00010164,2]
[328164712,1716979839044,-158.8,0.00010228,2]
[328164713,1716979839054,-158.8,0.00010292,2]
[328164714,1716979839064,-158.8,0.00010356,2]
[328164715,1716979839073,-1895.56,0.00010411,3]
[328164716,1716979839083,-710.13,0.00010469,2]
[328164717,1716979839092,-412.17126416,0.00010696,2]
[328164718,1716979839101,-155.28,0.0001095,2]
[328164719,1716979839111,-155.28,0.00010958,2]
[328164720,1716979839120,-8026.73,0.00010959,2]
[328164721,1716979839129,-565.96,0.00010959,2]
[328164722,1716979839139,-155.28,0.00010966,2]
[328164723,1716979839148,-155.28,0.00010974,2]
[328164724,1716979839158,-155.28,0.00010982,2]
[328164725,1716979839167,-155.28,0.0001099,2]
[328164726,1716979839176,-155.28,0.00010997,2]
[328164727,1716979839187,-1000.0,0.00011001,2]
[328164728,1716979839197,-155.28,0.00011005,2]
[328164729,1716979839207,-171.47,0.00011746,2]
[328164730,1716979839216,-80967.06868349,0.000118,2]
[328164732,1716979840948,-860.48638546,0.000118,2]
[328164733,1716979842030,-393.29106466,0.000118,2]
[328164734,1716979842041,-442.99999994,0.000118,2]
[328164738,1716979844887,-4893.76786919,0.000118,2]
[328164739,1716979844914,-328.39001,0.000118,2]
[328164745,1716979845887,-560.52287682,0.000118,2]
[328164747,1716979845899,-26421.36207308,0.000118,2]
[328164749,1716979845909,-3000.0,0.0001189,2]
[328164751,1716979845918,-173.66,0.00012033,2]
[328164753,1716979845928,-1000.0,0.00012223,2]
[328164754,1716979845939,-4068.44,0.00012228,2]
[328164755,1716979845948,-357.0,0.00012597,2]
[328164756,1716979845957,-190.839,0.00012597,2]
[328164757,1716979845967,-1646.0,0.00012597,2]
[328164758,1716979845976,-617.53,0.00012597,2]
[328164759,1716979845985,-1266.323,0.00012597,2]
[328164760,1716979845994,-444.086,0.00012597,2]
[328164761,1716979846003,-1178.551,0.00012597,2]
[328164762,1716979846012,-346.884,0.00012597,2]
[328164763,1716979846022,-1493.4,0.00012597,2]
[328164764,1716979846031,-235.291,0.00012597,2]
[328164765,1716979846040,-197.054,0.00012597,2]
[328164766,1716979846049,-37953.0,0.00012597,2]
[328164767,1716979846058,-179.0,0.00012597,2]
[328164768,1716979846067,-355.20872299,0.00012709,2]
[328164769,1716979846076,-710.13,0.00012719,2]
[328164770,1716979846085,-2607.73794193,0.0001274,2]
[328164771,1716979846095,-212.27538932,0.000128,2]
[328164772,1716979846104,-3190.52408461,0.000128,2]
[328164773,1716979846113,-166.39466723,0.000128,2]
[328164774,1716979846122,-173.84041979,0.000128,2]
[328164775,1716979846131,-179.99194171,0.000128,2]
[328164777,1716979846140,-1000.0,0.00012877,2]
[328164778,1716979846149,-1000.0,0.00012877,2]
[328164779,1716979846159,-1000.0,0.00012877,2]
[328164780,1716979846168,-1000.0,0.00012877,2]
[328164781,1716979846177,-1000.0,0.00012877,2]
[328164782,1716979846186,-1000.0,0.00012877,2]
[328164783,1716979846196,-1000.0,0.00012877,2]
[328164784,1716979846206,-1000.0,0.00012877,2]
[328164785,1716979846215,-1000.0,0.00012877,2]
[328164786,1716979846224,-1000.0,0.00012877,2]
[328164788,1716979846235,-1000.0,0.00012877,2]
[328164789,1716979846246,-801.0,0.00012877,2]
[328164790,1716979846256,-193.746,0.0001288,2]
[328164791,1716979846267,-151.0,0.0001289,2]
[328164792,1716979846277,-151.0,0.0001289,2]
[328164793,1716979846286,-500.0,0.00012895,2]
[328164794,1716979846296,-500.0,0.00012896,2]
[328164795,1716979846305,-1735.98442187,0.00012898,2]
[328164796,1716979846315,-410.27026242,0.00012898,2]
[328164797,1716979846324,-1545.28114739,0.00012898,2]
[328164798,1716979846334,-1545.2811473,0.00012898,2]
[328164799,1716979846343,-1545.2811473,0.00012898,2]
[328164800,1716979846352,-1545.2811473,0.00012898,2]
[328164801,1716979846362,-1545.2811473,0.00012898,2]
[328164802,1716979846371,-1545.2811473,0.00012898,2]
[328164803,1716979846380,-1545.2811473,0.00012898,2]
[328164804,1716979846390,-1545.2811473,0.00012898,2]
[328164805,1716979846399,-1545.2811473,0.00012898,2]
[328164806,1716979846408,-1000.0,0.00012899,2]
[328164807,1716979846417,-1000.0,0.00012899,2]
[328164808,1716979846426,-1000.0,0.00012899,2]
[328164809,1716979846435,-4748.4176,0.00012899,2]
[328164810,1716979846446,-10000.0,0.00012899,2]
[328164811,1716979846455,-10000.0,0.00012899,2]
[328164812,1716979846464,-10000.0,0.00012899,2]
[328164813,1716979846474,-499.1996,0.00012899,2]
[328164814,1716979846483,-499.1996,0.00012899,2]
[328164815,1716979846492,-1399.34989282,0.00012899,2]
[328164816,1716979846501,-168.453155,0.00012899,2]
[328164817,1716979846510,-1399.34989281,0.00012899,2]
[328164818,1716979846519,-168.453155,0.00012899,2]
[328164819,1716979846529,-1399.34989281,0.00012899,2]
[328164820,1716979846539,-1399.34989281,0.00012899,2]
[328164821,1716979846548,-1399.34989281,0.00012899,2]
[328164822,1716979846558,-1399.34989281,0.00012899,2]
[328164823,1716979846567,-1399.34989281,0.00012899,2]
[328164824,1716979846576,-1399.34989281,0.00012899,2]
[328164825,1716979846586,-1399.34989281,0.00012899,2]
[328164826,1716979846595,-44558.57451121,0.000129,2]
[328164827,1716979846624,-622.93662673,0.000129,2]
[328164828,1716979846636,-1192.42525631,0.000129,2]
[328164829,1716979851038,150.0,5e-05,2]
[328164830,1716979851060,150.0,5e-05,2]
[328164831,1716979851080,150.0,5e-05,2]
[328164832,1716979851101,150.0,5e-05,2]
[328164833,1716979851122,150.0,5e-05,2]
[328164834,1716979851143,150.0,5e-05,2]
[328164835,1716979851166,150.0,5e-05,2]
[328164836,1716979913425,191.39,5e-05,2]
[328164837,1716979913454,24448.46337049,5e-05,2]
[328164838,1716979929583,5000.0,5e-05,2]
[328164839,1716979929607,5000.0,5e-05,2]
[328164840,1716979929629,5000.0,5e-05,2]
[328164841,1716979929652,5000.0,5e-05,2]
[328164842,1716979929677,4639.85337049,5e-05,2]
[328164844,1716979951429,360.14662951,5e-05,2]
[328164845,1716979951455,5000.0,5e-05,2]
[328164846,1716979951480,5000.0,5e-05,2]
[328164847,1716979951501,5000.0,5e-05,2]
[328164848,1716979951522,5000.0,5e-05,2]
[328164849,1716979951542,4279.70674098,5e-05,2]
[328164850,1716979967422,720.29325902,5e-05,2]
[328164851,1716979967447,23919.56011147,5e-05,2]
[328164852,1716979987440,24639.85337049,5e-05,2]
[328164853,1716980007426,150.0,5e-05,2]
[328164854,1716980007447,150.0,5e-05,2]
[328164855,1716980007467,150.0,5e-05,2]
[328164856,1716980007488,150.0,5e-05,2]
[328164857,1716980007510,24039.85337049,5e-05,2]
[328164858,1716980029431,150.0,5e-05,2]
[328164859,1716980029453,150.0,5e-05,2]
[328164860,1716980029475,150.0,5e-05,2]
[328164861,1716980029496,150.0,5e-05,2]
[328164862,1716980029518,150.0,5e-05,2]
[328164863,1716980029540,150.0,5e-05,2]
[328164864,1716980029563,150.0,5e-05,2]
[328164865,1716980029585,150.0,5e-05,2]
[328164866,1716980029608,150.0,5e-05,2]
[328164867,1716980029630,150.0,5e-05,2]
[328164868,1716980029652,150.0,5e-05,2]
[328164869,1716980029675,150.0,5e-05,2]
[328164870,1716980029697,150.0,5e-05,2]
[328164871,1716980029719,150.0,5e-05,2]
[328164872,1716980029741,150.0,5e-05,2]
[328164873,1716980029762,150.0,5e-05,2]
[328164874,1716980029784,150.0,5e-05,2]
[328164875,1716980029806,150.0,5e-05,2]
[328164876,1716980029830,150.0,5e-05,2]
[328164877,1716980029854,11865.65571013,5e-05,2]
[328164878,1716980039989,289.48756793,5e-05,2]
[328164879,1716980050809,167.36834301,5e-05,2]
[328164880,1716980051319,1830.43944239,3.75e-05,2]
[328164881,1716980057989,212.73328819,5e-05,2]
[328164886,1716980503675,753.34,8.597e-05,2]
[328164887,1716980552621,1746.63135848,8.597e-05,2]
[328164888,1716980552642,5000.0,8.597e-05,2]
[328164889,1716980552664,5000.0,8.597e-05,2]
[328164890,1716980552688,5000.0,8.597e-05,2]
[328164891,1716980552710,5000.0,8.597e-05,2]
[328164892,1716980572085,-1003.09417506,0.00013698,5]
[328165019,1716981032463,-282.32145963,8.155e-05,2]
[328165020,1716981032472,-155.0,8.156e-05,2]
[328165021,1716981032482,-535.29274514,8.157e-05,2]
[328165022,1716981032491,-268.12537096,8.158e-05,2]
[328165023,1716981032500,-5835.640378,8.178e-05,2]
[328165024,1716981032510,-1419.23,8.587e-05,2]
[328165025,1716981032519,-150.0,8.596e-05,2]
[328165026,1716981032528,-150.0,8.596e-05,2]
[328165028,1716981032538,-45677.57016185,8.597e-05,2]
[328165030,1716981032547,-210.0,9.456e-05,2]
[328165032,1716981032557,-210.0,9.456e-05,2]
[328165034,1716981032566,-1000.0,0.0001,2]
[328165035,1716981032575,-150.99,0.0001,2]
[328165036,1716981032584,-250.0,0.00010091,2]
[328165037,1716981032594,-627.99,0.00010117,2]
[328165038,1716981032603,-250.0,0.0001013,2]
[328165039,1716981032612,-1050.41,0.0001013,2]
[328165040,1716981032621,-499.99,0.0001013,2]
[328165041,1716981032630,-2335.63,0.00010287,2]
[328165042,1716981032640,-171.47,0.00010323,2]
[328165043,1716981032658,-200.0,0.00010328,2]
[328165044,1716981032669,-400.0,0.00010331,2]
[328165045,1716981032678,-23900.0,0.00010377,2]
[328165046,1716981032688,-1219.61,0.00010389,2]
[328165047,1716981032697,-155.78,0.00010406,2]
[328165048,1716981032706,-1200.0,0.00010411,3]
[328165049,1716981032715,-1000.0,0.00010456,2]
[328165050,1716981032725,-155.78,0.00010473,2]
[328165051,1716981032735,-200.0,0.0001053,2]
[328165052,1716981032744,-155.78,0.00010541,2]
[328165053,1716981032754,-155.78,0.00010609,2]
[328165054,1716981032764,-155.78,0.00010677,2]
[328165055,1716981032773,-155.78,0.00010744,2]
[328165056,1716981032782,-155.78,0.00010812,2]
[328165057,1716981032792,-753.34,0.0001086,2]
[328165058,1716981032802,-155.78,0.0001088,2]
[328165059,1716981032811,-429.29,0.00010931,2]
[328165060,1716981032820,-429.29,0.00010934,2]
[328165061,1716981032830,-429.29,0.00010937,2]
[328165062,1716981032839,-429.29,0.0001094,2]
[328165063,1716981032849,-429.29,0.00010943,2]
[328165064,1716981032858,-429.29,0.00010946,2]
[328165065,1716981032868,-155.78,0.00010948,2]
[328165066,1716981032878,-429.29,0.00010949,2]
[328165067,1716981032887,-429.29,0.00010952,2]
[328165068,1716981032896,-429.29,0.00010954,2]
[328165069,1716981032906,-429.29,0.00010957,2]
[328165070,1716981032915,-150.0,0.00010959,2]
[328165071,1716981032924,-1500.0,0.00010959,2]
[328165072,1716981032934,-429.29,0.0001096,2]
[328165073,1716981032942,-429.29,0.00010963,2]
[328165074,1716981032952,-429.29,0.00010966,2]
[328165075,1716981032961,-429.29,0.00010969,2]
[328165076,1716981032970,-429.29,0.00010972,2]
[328165077,1716981032980,-429.29,0.00010975,2]
[328165078,1716981032989,-429.29,0.00010977,2]
[328165079,1716981032998,-429.29,0.0001098,2]
[328165080,1716981033008,-429.29,0.00010983,2]
[328165081,1716981033017,-429.29,0.00010986,2]
[328165082,1716981033027,-177.68,0.00010995,2]
[328165083,1716981033036,-751.70479223,0.00011,2]
[328165084,1716981033045,-1000.0,0.00011,2]
[328165085,1716981033054,-169.78,0.00011224,2]
[328165086,1716981033064,-13979.3988,0.0001145,2]
[328165087,1716981033073,-600.0,0.00011571,2]
[328165088,1716981033083,-570.11162433,0.00011608,2]
[328165089,1716981033092,-400.0,0.00011623,2]
[328165090,1716981033102,-257.2707,0.000117,2]
[328165091,1716981033111,-1071.9222,0.000117,2]
[328165092,1716981033120,-2610.89507478,0.00012,2]
[328165093,1716981033129,-1298.39020343,0.00012158,2]
[328165094,1716981033139,-315.1381068,0.00012158,2]
[328165095,1716981033153,-9994.97803972,0.0001234,2]
[328165096,1716981033163,-2147.7816,0.00012422,2]
[328165097,1716981033172,-1285.788,0.0001255,2]
[328165098,1716981033184,-37953.0,0.0001255,2]
[328165099,1716981033195,-2194.80540805,0.000127,2]
[328165100,1716981033204,-1000.0,0.000127,2]
[328165101,1716981033216,-213.23892212,0.000127,2]
[328165102,1716981033225,-2500.0,0.000127,2]
[328165103,1716981033236,-322.7571644,0.000127,2]
[328165104,1716981033247,-1000.0,0.000128,2]
[328165105,1716981033257,-106969.06703147,0.000128,2]
[328165114,1716981038000,-268.12537096,8.154e-05,2]
[328165115,1716981038010,-353.62162423,0.000126,2]
[328165138,1716981041693,-715.67,0.00010357,2]
[328165139,1716981041702,-646.37837577,0.000126,2]
[328165140,1716981041711,-715.67,0.00012621,2]
[328165141,1716981041720,-4713.18542423,0.000128,2]
[328165261,1716981044254,-1870.93811221,0.000128,2]
[328165262,1716981044949,-2868.69292426,0.000128,2]
[328165263,1716981044962,-1533.39895385,0.000128,2]
[328165267,1716981046031,-627.44,0.000128,2]
[328165302,1716981046389,-107.41693593,0.000128,2]
[328165337,1716982163878,1065.47621405,9.999e-05,2]
[328165407,1716982194165,154.0387353,9.902e-05,2]
[328165421,1716982232277,-344.98695311,0.00010001,2]
[328165422,1716982232287,-409.00006392,0.00010002,2]
[328165423,1716982232300,-207.96993608,0.00010002,2]
[328165424,1716982232313,-751.20237387,0.00011608,2]
[328165425,1716982232322,-760.0,0.00011842,2]
[328165426,1716982232331,-250.0,0.00011861,2]
[328165427,1716982232340,-150.0,0.00011883,2]
[328165429,1716982232349,-150.0,0.00011883,2]
[328165431,1716982232358,-853.48853393,0.00011884,2]
[328165435,1716982232539,-856.26166783,0.00011884,2]
[328165437,1716982232556,-531.80120502,0.00011884,2]
[328165442,1716982238215,-21658.44859322,0.00011884,2]
[328165446,1716982238225,-1628.73,0.00011885,2]
[328165449,1716982238234,-250.0,0.000119,2]
[328165451,1716982238243,-240.0,0.0001192,2]
[328165454,1716982238252,-616.97,0.00012266,2]
[328165457,1716982238261,-411.14768035,0.00012366,2]
[328165461,1716982238273,-1.02358381,0.00012366,2]
[328165463,1716982238282,-211.0101,0.000126,2]
[328165466,1716982238291,-126.18545399,0.000126,2]
[328165469,1716982238303,-424.88047589,0.000126,2]
[328165489,1716982238519,-1089.76447012,0.000126,2]
[328165490,1716982238529,-3471.54041381,0.0001269,2]
[328165491,1716982238538,-27793.74433754,0.000127,2]
[328165492,1716982238554,-1421.48642708,0.000127,2]
[328165493,1716982238566,-529.71695874,0.000127,2]
[328165494,1716982238577,-335.125,0.000127,2]
[328165495,1716982238589,-786.92981424,0.000127,2]
[328165496,1716982238601,-333.13494006,0.000127,2]
[328165505,1716982241528,-1008.59910984,0.000127,2]
[328165506,1716982241540,-1032.75,0.000127,2]
[328165507,1716982241556,-6198.4652919,0.000127,2]
[328165509,1716982241568,-3149.8700206,0.000127,2]
[328165510,1716982241577,-4884.4164794,0.000127,2]
[328165511,1716982242770,-1727.1306161,0.000127,2]
[328165512,1716982243052,-608.74076243,0.000127,2]
[328165555,1716982244106,-404.11202612,0.000127,2]
[328165557,1716982244119,-1378.17112786,0.000127,2]
[328165561,1716982244937,-1288.4278788,0.000127,2]
[328165607,1716982270899,748.10576064,9.902e-05,2]
[328165618,1716982745287,583.69,9.974e-05,2]
[328165621,1716983211008,1448.68929001,9.974e-05,2]
[328165622,1716983211034,4000.0,9.974e-05,2]
[328165623,1716983211060,4000.0,9.974e-05,2]
[328165624,1716983211085,4000.0,9.974e-05,2]
[328165625,1716983211111,4000.0,9.974e-05,2]
[328165626,1716983211135,4000.0,9.974e-05,2]
[328165627,1716983211163,4000.0,9.974e-05,2]
[328165628,1716983211188,4000.0,9.974e-05,2]
[328165629,1716983211215,4000.0,9.974e-05,2]
[328165630,1716983211242,4000.0,9.974e-05,2]
[328165698,1716983385725,-200.0,9.453e-05,2]
[328165699,1716983385748,-554.5,9.912e-05,2]
[328165700,1716983385770,-4711.9083558,9.974e-05,2]
[328165707,1716983432044,-211.51288702,0.00011608,2]
[328165708,1716983432054,-160.17965788,0.00011703,2]
[328165709,1716983432109,-23739.82034212,0.00011703,2]
[328165710,1716983432119,-250.0,0.00011809,2]
[328165711,1716983432131,-608.0,0.00011809,2]
[328165712,1716983432140,-13316.0,0.00011821,2]
[328165713,1716983432150,-250.0,0.00011843,2]
[328165714,1716983432162,-1156.8,0.00011872,2]
[328165715,1716983432171,-392.0,0.00011913,2]
[328165716,1716983432181,-2164.48074212,0.00012,2]
[328165717,1716983432190,-212.56,0.00012025,2]
[328165718,1716983432200,-171.47,0.00012145,2]
[328165719,1716983432210,-499.99,0.00012145,2]
[328165720,1716983432219,-1011.26,0.00012145,2]
[328165721,1716983432228,-554.5,0.00012176,2]
[328165722,1716983432237,-2510.83024,0.0001257,2]
[328165723,1716983432247,-412.17126416,0.00012585,2]
[328165724,1716983432256,-1210.24851609,0.00012698,2]
[328165725,1716983432266,-309.77142765,0.00012699,2]
[328165726,1716983432275,-180.38347101,0.000127,2]
[328165727,1716983432285,-1728.939,0.000127,2]
[328165728,1716983432294,-29360.66559122,0.000127,2]
[328165729,1716983432318,-800.07111468,0.000127,2]
[328165730,1716983432386,-1390.06,0.000127,2]
[328165748,1716983438143,-873.81182588,0.000127,2]
[328165749,1716983438154,-1171.11856861,0.000127,2]
[328165750,1716983438165,-271.28811216,0.000127,2]
[328165751,1716983438200,-267.4029094,0.000127,2]
[328165752,1716983438211,-59747.96027805,0.000127,2]
[328165753,1716983438220,-4361.1251,0.000127,2]
[328165754,1716983438229,-967.9357,0.000127,2]
[328165755,1716983438238,-2500.0,0.000127,2]
[328165756,1716983438248,-3975.4398,0.00012795,2]
[328165757,1716983438257,-282.31768191,0.00012799,2]
[328165758,1716983438267,-157.02666016,0.00012799,2]
[328165759,1716983438276,-410.2235979,0.000128,2]
[328165760,1716983438285,-299.26588838,0.000128,2]
[328165761,1716983438294,-689.1049,0.000128,2]
[328165762,1716983438303,-1097.40270403,0.000128,2]
[328165763,1716983438312,-71000.84773967,0.000128,2]
[328165764,1716983438324,-475.96657021,0.000128,2]
[328165765,1716983438335,-929.58958259,0.000128,2]
[328165766,1716983438347,-1336.77449173,0.000128,2]
[328165767,1716983438358,-21147.1885193,0.000128,2]
[328165768,1716983438369,-368.4034386,0.000128,2]
[328165769,1716983438382,-545.03939917,0.000128,2]
[328165770,1716983438393,-2495.0,0.000128,2]
[328165771,1716983438405,-939.94662188,0.000128,2]
[328165790,1716983440676,-13938.34577262,0.000128,2]
[328165791,1716983440729,-5302.63835445,0.000128,2]
[328165792,1716983441415,-2982.58342577,0.000128,2]
[328165793,1716983443046,-837.9575451,0.000128,2]
[328165794,1716983443058,-573.67999997,0.000128,2]
[328165795,1716983443069,-759.85166724,0.000128,2]
[328165801,1716983443421,-938.99018955,0.000128,2]
[328165802,1716983443531,-2228.84938215,0.000128,2]
[328165803,1716983443541,-2000.0,0.000128,2]
[328165804,1716983443550,-200.0,0.000128,2]
[328165805,1716983443559,-460.60891829,0.000128,2]
[328165806,1716983443572,-1539.39108171,0.000128,2]
[328165807,1716983443581,-200.0,0.000128,2]
[328165808,1716983443590,-151.09574338,0.000128,2]
[328165809,1716983443599,-151.09574338,0.00012825,2]
[328165810,1716983443608,-500.0,0.00012835,2]
[328165811,1716983443618,-500.0,0.00012835,2]
[328165812,1716983443627,-500.0,0.00012835,2]
[328165813,1716983443637,-500.0,0.00012835,2]
[328165814,1716983443646,-500.0,0.00012835,2]
[328165815,1716983443655,-267.56306484,0.00012835,2]
[328165819,1716983443982,946.47526423,9.974e-05,2]
[328165824,1716983446110,-82.30093516,0.00012835,2]
[328165826,1716983446121,-393.53006484,0.00012835,2]
[328165837,1716983451035,3066.00447507,9.974e-05,2]
[328165838,1716983451624,1361.43772127,9.974e-05,2]
[328165839,1716983452944,333.2482717,0.0001,2]
[328165840,1716983454122,264.73513153,9.974e-05,2]
[328165843,1716983459952,578.39148145,9.974e-05,2]
[328165849,1716983481025,29646.32828168,9.974e-05,2]
[328165852,1716983499026,8336.97101727,9.974e-05,2]
[328165855,1716983531200,-344.98695311,9.973e-05,2]
[328165856,1716983531224,-655.01304689,9.974e-05,2]
[328165885,1716984467253,-1356.4159,9.854e-05,2]
[328165886,1716984467279,-531.81122606,9.904e-05,2]
[328165887,1716984467302,-2111.77287394,9.904e-05,2]
[328165888,1716984467539,-2323.78757702,9.904e-05,2]
[328165889,1716984467561,-554.06,9.905e-05,2]
[328165890,1716984467583,-163.16366108,9.972e-05,2]
[328165891,1716984467604,-958.9887619,9.972e-05,2]
[328165933,1716984632409,-505.69852393,9.963e-05,2]
[328165934,1716984632419,-364.77108528,9.964e-05,2]
[328165935,1716984632428,-843.54058849,9.965e-05,2]
[328165936,1716984632439,-150.0,9.967e-05,2]
[328165937,1716984632449,-19520.45595153,9.968e-05,2]
[328165938,1716984632459,-1405.2838525,9.972e-05,2]
[328165939,1716984632468,-156.19253735,9.972e-05,2]
[328165940,1716984632479,-156.05063836,9.972e-05,2]
[328165941,1716984632488,-210.21403465,9.972e-05,2]
[328165942,1716984632497,-686.78764601,9.972e-05,2]